bitfinex-derivatives/quotes_ETHF0:USTF0_20250322
["timestamp","ask_amount","ask_price","bid_price","bid_amount"]
[1742631108830,2.35149038,1987.0,1986.9,2.29117]
[1742631109028,3.35841038,1987.0,1986.9,1.2842]
[1742631122138,5.65786368,1987.0,1986.6,9.0798]
[1742631122331,1.00707,1986.7,1986.6,3.8546]
[1742631123540,2.40147,1986.7,1986.6,3.8546]
[1742631124147,2.40147,1986.7,1986.6,5.219]
[1742631124446,5.58347,1986.7,1986.6,5.219]
[1742631125049,5.58347,1986.7,1986.6,2.0112]
[1742631125244,5.58347,1986.7,1986.6,2.6881]
[1742631129051,4.18907,1986.7,1986.6,2.6881]
[1742631130048,4.18907,1986.7,1986.6,3.69522]
[1742631130350,4.18907,1986.7,1986.6,2.6881]
[1742631135543,4.18907,1986.7,1986.6,1.3644]
[1742631135744,1.00722,1986.4,1986.3,0.6723]
[1742631135943,4.18922,1986.4,1986.3,0.6723]
[1742631136655,1.00733,1986.2,1986.1,3.2078]
[1742631136856,1.00733,1986.2,1986.1,3.8801]
[1742631137153,4.18933,1986.2,1986.1,3.8801]
[1742631139553,4.18933,1986.2,1986.1,0.6723]
[1742631139952,3.182,1986.2,1986.1,1.67968]
[1742631140153,4.18924,1986.4,1986.1,0.6723]
[1742631140361,1.00727,1986.3,1986.2,1.0073]
[1742631140652,4.18926,1986.4,1986.2,1.0073]
[1742631140857,4.18926,1986.4,1986.2,2.3092]
[1742631141055,4.18926,1986.4,1986.3,0.6439]
[1742631141243,4.18926,1986.4,1986.3,1.9458]
[1742631149353,4.18926,1986.4,1986.0,4.21521]
[1742631149354,1.00738,1986.1,1986.0,4.21521]
[1742631149556,2.29067,1986.3,1986.2,1.3279]
[1742631149749,5.47267,1986.3,1986.2,1.3279]
[1742631150059,1.00738,1986.1,1986.0,0.6618]
[1742631150256,4.18938,1986.1,1986.0,1.9897]
[1742631159475,1.00753,1985.8,1985.7,5.872]
[1742631159768,1.00758,1985.7,1985.6,1.65661]
[1742631159961,1.00758,1985.7,1985.6,0.649]
[1742631160755,2.36668,1985.7,1985.6,1.9287]
[1742631162162,1.00773,1985.4,1985.3,3.2078]
[1742631162362,4.18973,1985.4,1985.3,3.2078]
[1742631162562,4.18973,1985.4,1985.3,2.34555801]
[1742631162758,1.00788,1985.1,1985.0,5.872]
[1742631162965,4.18988,1985.1,1985.0,5.872]
[1742631163568,5.59178,1985.1,1985.0,7.8664]
[1742631167068,4.18988,1985.1,1985.0,7.8664]
[1742631167370,4.18988,1985.1,1985.0,1.9944]
[1742631170376,5.55888,1985.1,1985.0,1.9944]
[1742631174280,1.00793,1985.0,1984.9,0.00755801]
[1742631174471,5.55413,1985.0,1984.9,0.00755801]
[1742631177279,5.63347954,1985.0,1984.9,0.00755801]
[1742631177983,5.63347924,1985.0,1984.9,0.00755801]
[1742631178185,5.55413,1985.0,1984.9,0.00755801]
[1742631180178,2.34633,1985.0,1984.9,0.00755801]
[1742631180377,4.19193,1985.0,1984.9,0.00755801]
[1742631180979,1.00793,1985.0,1984.9,0.00755801]
[1742631181178,1.00793,1985.0,1984.9,0.65965801]
[1742631181683,4.19193,1985.0,1984.9,0.65965801]
[1742631182181,1.00793,1985.0,1984.9,0.65965801]
[1742631182385,4.19193,1985.0,1984.9,0.65965801]
[1742631183683,7.39973,1985.0,1984.9,0.65965801]
[1742631184787,4.19193,1985.0,1984.9,0.65965801]
[1742631186679,4.19193,1985.0,1984.9,1.36125801]
[1742631186882,7.39973,1985.0,1984.9,1.36125801]
[1742631187181,9.89973,1985.0,1984.9,0.00755801]
[1742631187494,10.44657362,1985.0,1984.9,0.00755801]
[1742631187685,11.45333238,1985.0,1984.9,0.00755801]
[1742631188394,12.25615607,1985.0,1984.9,0.00755801]
[1742631188591,13.62295607,1985.0,1984.9,0.00755801]
[1742631189082,12.82012993,1985.0,1984.9,0.00755801]
[1742631189285,13.62297537,1985.0,1984.9,0.00755801]
[1742631190191,13.62298212,1985.0,1984.9,0.00755801]
[1742631192004,13.62298145,1985.0,1984.9,0.00755801]
[1742631193489,10.43898215,1985.0,1984.9,0.00755801]
[1742631193703,13.5436342,1985.0,1984.9,0.00755801]
[1742631194000,13.62298322,1985.0,1984.9,0.00755801]
[1742631194194,13.5436342,1985.0,1984.9,0.00755801]
[1742631194395,13.6229836,1985.0,1984.9,0.00755801]
[1742631194999,11.1229836,1985.0,1984.9,0.00755801]
[1742631196496,7.9151836,1985.0,1984.9,0.00755801]
[1742631196703,11.12298302,1985.0,1984.9,0.00755801]
[1742631198300,11.12298293,1985.0,1984.9,0.00755801]
[1742631198501,13.62298293,1985.0,1984.9,0.00755801]
[1742631199904,1.00804,1984.8,1984.7,0.68]
[1742631200210,7.39984,1984.8,1984.7,0.68]
[1742631200509,9.28878766,1984.8,1984.7,0.68]
[1742631200703,10.59468766,1984.8,1984.7,0.68]
[1742631201007,1.00809,1984.7,1984.6,0.00755801]
[1742631201202,4.1235942,1984.7,1984.6,0.00755801]
[1742631203909,4.1235942,1984.7,1984.6,0.66025801]
[1742631204805,3.32074876,1984.7,1984.6,0.66025801]
[1742631206016,2.01484876,1984.7,1984.6,0.66025801]
[1742631206513,0.00755801,1984.8,1984.7,1.00809]
[1742631206814,4.19299,1984.9,1984.7,2.40669]
[1742631207013,3.185,1984.9,1984.8,2.40664]
[1742631207215,7.01422,1985.2,1984.8,1.3986]
[1742631207416,7.01422,1985.2,1984.9,1.3986]
[1742631207417,1.00797,1985.0,1984.9,1.3986]
[1742631208608,4.19197,1985.0,1984.9,1.3986]
[1742631208917,3.184,1985.0,1984.9,2.40659]
[1742631211308,4.19193,1985.0,1984.9,2.40659]
[1742631211507,3.184,1985.0,1984.9,2.40659]
[1742631211711,4.19193,1985.0,1984.9,2.40659]
[1742631211909,3.184,1985.0,1984.9,2.40659]
[1742631212311,4.19193,1985.0,1984.9,2.40659]
[1742631214513,4.19193,1985.0,1984.9,1.3986]
[1742631216018,4.19193,1985.0,1984.9,2.40659]
[1742631219910,4.19193,1985.0,1984.9,2.40653]
[1742631219911,1.00793,1985.0,1984.9,2.40653]
[1742631221812,4.19947801,1985.1,1985.0,1.00793]
[1742631222013,4.19947801,1985.1,1985.0,3.67913]
[1742631222221,4.19947801,1985.1,1985.0,2.6712]
[1742631222809,4.19947801,1985.1,1985.0,3.67913]
[1742631227925,4.19947801,1985.1,1985.0,2.6712]
[1742631228725,1.00799,1984.9,1984.8,5.872]
[1742631228924,4.19199,1984.9,1984.8,5.872]
[1742631229126,1.00809,1984.7,1984.6,0.00755801]
[1742631229327,4.19209,1984.7,1984.6,0.00755801]
[1742631229824,5.55219,1984.7,1984.6,0.00755801]
[1742631230017,5.55219,1984.7,1984.6,1.41435801]
[1742631231229,5.55219,1984.7,1984.6,0.00755801]
[1742631236236,5.55219,1984.7,1984.6,1.32005801]
[1742631237944,4.5441,1984.7,1984.6,1.32005801]
[1742631238140,5.55219,1984.7,1984.6,2.32819801]
[1742631238340,3.184,1984.8,1984.6,3.84036801]
[1742631238531,3.184,1984.8,1984.7,3.01529]
[1742631238930,1.3488,1984.8,1984.7,3.01529]
[1742631240641,4.19197,1985.0,1984.9,1.00799]
[1742631240832,2.28767,1985.0,1984.9,1.00799]
[1742631241037,1.2797,1985.0,1984.9,1.00799]
[1742631241240,1.2797,1985.0,1984.9,2.32999]
[1742631242147,2.28763,1985.0,1984.9,2.32999]
[1742631244640,2.28763,1985.0,1984.9,5.53779]
[1742631244851,2.28763,1985.0,1984.9,2.32999]
[1742631245951,1.2797,1985.0,1984.9,2.32999]
[1742631246343,1.2797,1985.0,1984.9,8.20199]
[1742631247459,2.28763,1985.0,1984.9,8.20199]
[1742631247957,1.2797,1985.0,1984.9,8.20199]
[1742631248345,2.28763,1985.0,1984.9,8.20199]
[1742631248545,1.2797,1985.0,1984.9,8.20199]
[1742631248765,2.28763,1985.0,1984.9,8.20199]
[1742631252259,2.28763,1985.0,1984.9,2.32999]
[1742631255368,1.2797,1985.0,1984.9,2.32999]
[1742631255962,2.28763,1985.0,1984.9,2.32999]
[1742631280081,2.28763,1985.0,1984.9,1.322]
[1742631280282,2.28763,1985.0,1984.9,2.32999]
[1742631280787,2.28763,1985.0,1984.9,1.322]
[1742631281387,2.28763,1985.0,1984.9,2.32999]
[1742631284187,1.2797,1985.0,1984.9,2.32999]
[1742631285693,2.28763,1985.0,1984.9,2.32999]
[1742631285882,1.2797,1985.0,1984.9,2.32999]
[1742631287193,2.28763,1985.0,1984.9,2.32999]
[1742631290099,1.2797,1985.0,1984.9,2.32999]
[1742631290689,2.28763,1985.0,1984.9,2.32999]
[1742631291694,1.2797,1985.0,1984.9,2.32999]
[1742631292486,2.28763,1985.0,1984.9,2.32999]
[1742631293196,1.2797,1985.0,1984.9,2.32999]
[1742631293398,1.2797,1985.0,1984.9,8.20199]
[1742631296604,2.28763,1985.0,1984.9,8.20199]
[1742631298099,1.2797,1985.0,1984.9,8.20199]
[1742631303710,2.28763,1985.0,1984.9,8.20199]
[1742631304410,2.76283,1985.0,1984.9,5.872]
[1742631305205,2.76283,1985.0,1984.9,7.2036]
[1742631305407,2.76283,1985.0,1984.9,8.21159]
[1742631305707,2.28763,1985.0,1984.9,8.21159]
[1742631310511,4.19847801,1985.1,1985.0,1.00793]
[1742631310719,4.19847801,1985.1,1985.0,2.96383]
[1742631310909,5.18701666,1985.1,1985.0,2.96383]
[1742631311510,0.99609666,1985.1,1985.0,2.96383]
[1742631312210,4.19062,1985.7,1985.3,3.52722]
[1742631312511,1.2865,1985.6,1985.5,1.00768]
[1742631312716,1.2865,1985.6,1985.5,2.40218]
[1742631313215,0.00755801,1985.7,1985.6,1.00763]
[1742631313410,1.29405801,1985.7,1985.6,1.00763]
[1742631313608,1.29405801,1985.7,1985.6,6.87963]
[1742631315210,1.29405801,1985.7,1985.6,7.56153]
[1742631315917,0.00755801,1985.7,1985.6,7.56153]
[1742631316310,0.00755801,1985.7,1985.6,10.74453]
[1742631321119,1.00746,1986.0,1985.9,1.00748]
[1742631321321,2.37596,1986.0,1985.9,1.00748]
[1742631321714,2.37596,1986.0,1985.9,1.71248]
[1742631324220,2.37596,1986.0,1985.9,0.705]
[1742631324817,2.37596,1986.0,1985.9,1.71248]
[1742631325314,1.3685,1986.0,1985.9,1.71248]
[1742631326424,1.3685,1986.0,1985.9,3.11858]
[1742631327514,0.00755801,1986.1,1986.0,1.00743]
[1742631327713,0.00755801,1986.1,1986.0,2.41243]
[1742631330213,0.00755801,1986.1,1986.0,5.59443]
[1742631331415,0.00755801,1986.1,1986.0,11.46643]
[1742631333221,1.39565801,1986.1,1986.0,11.46643]
[1742631351222,1.39565801,1986.1,1986.0,5.872]
[1742631351422,5.61083801,1986.1,1986.0,5.872]
[1742631351625,6.29993801,1986.1,1986.0,5.872]
[1742631352318,6.29993801,1986.1,1986.0,6.87943]
[1742631353331,3.09213801,1986.1,1986.0,6.87943]
[1742631372840,3.09213801,1986.1,1986.0,8.23573]
[1742631376747,2.40303801,1986.1,1986.0,8.23573]
[1742631381246,1.39565801,1986.1,1986.0,8.23573]
[1742631382447,2.40303801,1986.1,1986.0,8.23573]
[1742631384948,1.39565801,1986.1,1986.0,8.23573]
[1742631385157,2.40303801,1986.1,1986.0,8.23573]
[1742631385746,1.39565801,1986.1,1986.0,8.23573]
[1742631386144,2.40303801,1986.1,1986.0,8.23573]
[1742631386351,1.39565801,1986.1,1986.0,8.23573]
[1742631386955,2.40303801,1986.1,1986.0,8.23573]
[1742631387651,1.39565801,1986.1,1986.0,8.23573]
[1742631389249,2.40303801,1986.1,1986.0,8.23573]
[1742631392555,1.39565801,1986.1,1986.0,8.23573]
[1742631393655,2.40303801,1986.1,1986.0,8.23573]
[1742631394953,1.39565801,1986.1,1986.0,8.23573]
[1742631395963,0.00755801,1986.1,1986.0,8.23573]
[1742631399963,0.00755801,1986.1,1986.0,11.41573]
[1742631403467,3.2078,1986.7,1986.0,10.4083]
[1742631403672,1.2817,1986.5,1986.4,1.00722]
[1742631403866,1.2817,1986.5,1986.4,9.55792]
[1742631408078,0.00755801,1986.6,1986.5,1.00717]
[1742631408274,0.00755801,1986.6,1986.5,2.38207]
[1742631409370,1.29315801,1986.6,1986.5,2.38207]
[1742631409565,1.29315801,1986.6,1986.5,5.58987]
[1742631409770,1.00696,1987.0,1986.9,1.00693]
[1742631409771,1.00694,1987.0,1986.9,1.00693]
[1742631409965,2.38274,1987.0,1986.9,1.00693]
[1742631410177,1.3758,1987.0,1986.9,1.00693]
[1742631410566,1.3758,1987.0,1986.9,2.38183]
[1742631412380,2.38272,1987.0,1986.9,2.38183]
[1742631413177,1.3758,1987.0,1986.9,2.38183]
[1742631413579,1.3758,1987.0,1986.9,8.25383]
[1742631414878,2.38272,1987.0,1986.9,8.25383]
[1742631417871,1.3758,1987.0,1986.9,8.25383]
[1742631418277,2.38272,1987.0,1986.9,8.25383]
[1742631418576,1.3758,1987.0,1986.9,8.25383]
[1742631418772,2.38272,1987.0,1986.9,8.25383]
[1742631419677,1.3758,1987.0,1986.9,8.25383]
[1742631421073,2.38272,1987.0,1986.9,8.25383]
[1742631421273,1.3758,1987.0,1986.9,8.25383]
[1742631421779,2.38272,1987.0,1986.9,8.25383]
[1742631422373,2.38272,1987.0,1986.9,5.872]
[1742631422574,5.56172,1987.0,1986.9,5.84932597]
[1742631422872,5.56172,1987.0,1986.3,5.72598]
[1742631422873,1.00717,1986.5,1986.4,3.73052597]
[1742631423474,2.35087,1986.5,1986.4,3.73052597]
[1742631425675,1.00727,1986.3,1986.2,5.03922597]
[1742631426580,2.34727,1986.3,1986.2,5.03922597]
[1742631427282,2.34727,1986.3,1986.2,6.04655597]
[1742631429082,2.34727,1986.3,1986.2,7.33505597]
[1742631429983,2.34727,1986.3,1986.2,5.68522597]
[1742631430180,2.34727,1986.3,1986.2,4.39672597]
[1742631430386,2.34727,1986.3,1986.2,3.73052597]
[1742631430682,5.55507,1986.3,1986.2,3.73052597]
[1742631434178,1.00738,1986.1,1986.0,5.11402597]
[1742631436379,1.00738,1986.1,1986.0,6.12145597]
[1742631436777,1.00738,1986.1,1986.0,5.11402597]
[1742631437984,1.00738,1986.1,1986.0,6.12145597]
[1742631439582,1.3258,1986.2,1986.1,1.00738]
[1742631439778,3.2078,1986.3,1986.2,1.00733]
[1742631440087,3.2078,1986.3,1986.2,1.66793]
[1742631440088,4.5657,1986.3,1986.2,1.66793]
[1742631440286,5.57297,1986.3,1986.2,1.66793]
[1742631441992,2.36517,1986.3,1986.2,1.66793]
[1742631444793,1.3579,1986.3,1986.2,1.66793]
[1742631445090,2.36517,1986.3,1986.2,1.66793]
[1742631446081,1.3579,1986.3,1986.2,1.66793]
[1742631446679,6.3878,1986.5,1986.4,1.00722]
[1742631446886,1.00722,1986.4,1986.3,6.79146597]
[1742631447787,1.00722,1986.4,1986.3,5.78422597]
[1742631447989,2.36792,1986.4,1986.3,5.78422597]
[1742631448997,2.36792,1986.4,1986.3,6.79149597]
[1742631455585,2.36792,1986.4,1986.3,5.78422597]
[1742631456691,2.36792,1986.4,1986.3,3.73052597]
[1742631457394,3.33077536,1986.4,1986.3,3.73052597]
[1742631457600,1.00727,1986.3,1986.2,0.6606]
[1742631457797,5.58597,1986.3,1986.2,2.0602]
[1742631461100,2.37817,1986.3,1986.2,2.0602]
[1742631466098,5.58597,1986.3,1986.2,2.0602]
[1742631467308,2.37817,1986.3,1986.2,2.0602]
[1742631470810,1.00733,1986.2,1986.1,3.73052597]
[1742631471011,2.31353,1986.2,1986.1,5.11422597]
[1742631471604,2.31353,1986.2,1986.1,3.73052597]
[1742631471911,5.52133,1986.2,1986.1,3.73052597]
[1742631472613,5.52133,1986.2,1986.1,5.11422597]
[1742631475110,5.52133,1986.2,1986.1,1.3837]
[1742631482923,2.31353,1986.2,1986.1,1.3837]
[1742631486928,0.96391352,1986.3,1986.1,1.3837]
[1742631487129,1.00733,1986.2,1986.1,1.3837]
[1742631487730,1.00733,1986.2,1986.1,2.39104]
[1742631489631,1.00727,1986.3,1986.2,1.00733]
[1742631489829,1.00727,1986.3,1986.2,2.31573]
[1742631490533,2.38487,1986.3,1986.2,2.31573]
[1742631492136,4.21506,1986.4,1986.3,1.00727]
[1742631492327,5.53846,1986.4,1986.3,3.08087]
[1742631492531,2.33066,1986.4,1986.3,3.08087]
[1742631501846,2.33066,1986.4,1986.3,2.0736]
[1742631502743,2.33066,1986.4,1986.3,3.75207]
[1742631503240,2.33066,1986.4,1986.3,2.7448]
[1742631504052,2.33066,1986.4,1986.3,0.6971]
[1742631504245,5.53846,1986.4,1986.3,0.6971]
[1742631504645,1.00727,1986.3,1986.2,1.3861]
[1742631504953,2.34207,1986.3,1986.2,1.3861]
[1742631506050,1.00733,1986.2,1986.1,4.41002597]
[1742631506250,2.34213,1986.2,1986.1,4.41002597]
[1742631506649,5.54993,1986.2,1986.1,4.41002597]
[1742631509960,5.54993,1986.2,1986.1,5.70842597]
[1742631510358,5.54993,1986.2,1986.1,1.9779]
[1742631515456,1.3348,1986.2,1986.1,2.98528]
[1742631515758,3.179,1986.4,1986.2,1.00731]
[1742631515950,4.18622,1986.4,1986.3,1.3667]
[1742631517155,5.47622,1986.4,1986.3,1.3667]
[1742631523365,4.469,1986.4,1986.3,2.37397]
[1742631523665,1.29,1986.4,1986.3,2.37397]
[1742631526565,2.29722,1986.4,1986.3,2.37397]
[1742631531265,2.29722,1986.4,1986.3,1.3667]
[1742631533068,2.29722,1986.4,1986.3,2.37397]
[1742631534466,2.29722,1986.4,1986.3,1.3667]
[1742631544775,5.47622,1986.4,1986.3,1.3667]
[1742631548278,5.47622,1986.4,1986.3,2.37397]
[1742631548683,2.29722,1986.4,1986.3,2.37397]
[1742631549275,2.29722,1986.4,1986.3,1.3667]
[1742631550385,2.29722,1986.4,1986.3,2.37397]
[1742631550685,2.29722,1986.4,1986.3,1.3667]
[1742631552881,1.00727,1986.3,1986.2,3.73052597]
[1742631553184,2.33967,1986.3,1986.2,3.73052597]
[1742631554186,3.30253664,1986.3,1986.2,3.73052597]
[1742631554783,2.33967,1986.3,1986.2,3.73052597]
[1742631554987,2.33967,1986.3,1986.2,5.06322597]
[1742631555683,2.33967,1986.3,1986.2,3.73052597]
[1742631556186,3.30229126,1986.3,1986.2,3.73052597]
[1742631556690,3.30229126,1986.3,1986.2,5.08772597]
[1742631556889,1.00748,1985.9,1985.8,44.53808398]
[1742631557090,1.00748,1985.9,1985.8,4.39948398]
[1742631557991,7.39428,1985.9,1985.8,4.39948398]
[1742631558178,8.73488,1985.9,1985.8,4.39948398]
[1742631560399,8.73488,1985.9,1985.8,0.66895801]
[1742631560793,8.73488,1985.9,1985.8,0.00755801]
[1742631561100,9.37428,1985.9,1985.8,0.00755801]
[1742631562098,11.13618285,1985.9,1985.8,0.00755801]
[1742631562303,10.33497251,1985.9,1985.8,0.00755801]
[1742631563409,8.73488,1985.9,1985.8,0.00755801]
[1742631567401,5.52708,1985.9,1985.8,0.00755801]
[1742631567595,8.73488,1985.9,1985.8,0.00755801]
[1742631567801,8.73488,1985.9,1985.8,0.67305801]
[1742631573506,5.55588,1985.9,1985.8,0.67305801]
[1742631573813,5.55588,1985.9,1985.8,2.04875801]
[1742631574211,5.55588,1985.9,1985.8,0.00755801]
[1742631574398,5.96608,1985.9,1985.8,0.00755801]
[1742631574905,8.46608,1985.9,1985.8,0.00755801]
[1742631575415,1.00788,1985.1,1985.0,7.91743597]
[1742631575604,5.72717,1985.4,1985.0,7.91743597]
[1742631575803,1.00788,1985.1,1985.0,4.73843597]
[1742631576114,1.00788,1985.1,1985.0,3.73052597]
[1742631576413,4.21568,1985.1,1985.0,3.73052597]
[1742631577012,4.21568,1985.1,1985.0,5.78672597]
[1742631577404,4.21568,1985.1,1985.0,2.0562]
[1742631578510,7.39468,1985.1,1985.0,2.0562]
[1742631582818,7.39468,1985.1,1985.0,0.7022]
[1742631583611,8.68218,1985.1,1985.0,0.7022]
[1742631583811,8.68218,1985.1,1985.0,2.0844]
[1742631585319,8.68218,1985.1,1985.0,0.7022]
[1742631586826,8.68218,1985.1,1985.0,2.0206]
[1742631594118,1.00793,1985.0,1984.9,0.00755801]
[1742631594425,2.40723,1985.0,1984.9,0.00755801]
[1742631594828,2.40723,1985.0,1984.9,1.40375801]
[1742631597721,3.04003,1985.0,1984.9,0.00755801]
[1742631598825,3.9991229,1985.0,1984.9,0.00755801]
[1742631600729,4.07814888,1985.0,1984.9,0.00755801]
[1742631600933,4.87822956,1985.0,1984.9,0.00755801]
[1742631601234,10.10951956,1985.0,1984.9,8.01e-06]
[1742631603529,1.00829,1984.3,1984.2,2.7118]
[1742631603726,7.39709,1984.3,1984.2,2.7118]
[1742631605231,1.00834,1984.2,1984.1,0.00755801]
[1742631605539,2.41804,1984.2,1984.1,0.00755801]
[1742631608437,5.60704,1984.2,1984.1,0.00755801]
[1742631609131,2.41804,1984.2,1984.1,0.00755801]
[1742631609639,5.60704,1984.2,1984.1,0.00755801]
[1742631610432,2.41804,1984.2,1984.1,0.00755801]
[1742631610941,5.60704,1984.2,1984.1,0.00755801]
[1742631612038,2.41804,1984.2,1984.1,0.00755801]
[1742631612341,5.60604,1984.2,1984.1,0.00755801]
[1742631614737,2.41804,1984.2,1984.1,0.00755801]
[1742631614936,5.60504,1984.2,1984.1,0.00755801]
[1742631615139,5.60504,1984.2,1984.1,1.34105801]
[1742631618644,4.19534,1984.2,1984.1,1.34105801]
[1742631618944,3.187,1984.2,1984.1,2.34944801]
[1742631619143,4.19534,1984.2,1984.1,1.34105801]
[1742631619449,3.187,1984.2,1984.1,2.34944801]
[1742631619746,0.00755801,1984.4,1984.1,2.34944801]
[1742631619747,0.00755801,1984.4,1984.1,6.36203801]
[1742631619948,4.21599,1984.5,1984.3,1.00829]
[1742631620243,4.21599,1984.5,1984.4,1.336]
[1742631620548,5.60249,1984.5,1984.4,1.336]
[1742631621146,6.25769,1984.5,1984.4,1.336]
[1742631627543,7.21867655,1984.5,1984.4,1.336]
[1742631628350,1.00829,1984.3,1984.2,1.4067]
[1742631628550,7.41009,1984.3,1984.2,1.4067]
[1742631629151,4.20229,1984.3,1984.2,1.4067]
[1742631629649,7.41009,1984.3,1984.2,2.7903]
[1742631633860,3.17573,1984.5,1984.2,2.7903]
[1742631633861,6.3988,1984.5,1984.2,2.7903]
[1742631634159,8.8159,1984.5,1984.3,1.3814]
[1742631634458,1.00824,1984.4,1984.3,1.3814]
[1742631634661,2.41714,1984.4,1984.3,1.3814]
[1742631636155,3.07824,1984.4,1984.3,1.3814]
[1742631636557,4.04060789,1984.4,1984.3,1.3814]
[1742631636965,4.84341979,1984.4,1984.3,1.3814]
[1742631637365,4.04060789,1984.4,1984.3,1.3814]
[1742631640158,3.37950789,1984.4,1984.3,1.3814]
[1742631640559,2.41714,1984.4,1984.3,1.3814]
[1742631641268,7.41201,1984.5,1984.3,1.3814]
[1742631641570,7.41201,1984.5,1984.3,2.38969]
[1742631641862,1.00824,1984.4,1984.3,1.3814]
[1742631642056,2.30294,1984.4,1984.2,1.4067]
[1742631642565,2.30299,1984.3,1984.2,1.4067]
[1742631642867,5.51079,1984.3,1984.2,1.4067]
[1742631643569,2.30299,1984.3,1984.2,1.4067]
[1742631645269,2.30299,1984.3,1984.2,5.13722597]
[1742631649372,2.30299,1984.3,1984.2,6.14556597]
[1742631649569,1.00824,1984.4,1984.2,5.13722597]
[1742631649773,1.00824,1984.4,1984.3,1.00829]
[1742631650371,8.71652,1984.5,1984.2,5.13722597]
[1742631650569,3.2078,1984.5,1984.4,1.00824]
[1742631650772,3.196,1984.7,1984.4,3.2078]
[1742631650965,3.196,1984.7,1984.6,1.00814]
[1742631652268,4.20414,1984.7,1984.5,5.39347597]
[1742631653169,4.20414,1984.7,1984.6,1.00814]
[1742631653476,3.196,1984.7,1984.6,1.00814]
[1742631653968,3.196,1984.7,1984.6,1.66384]
[1742631655078,1.00809,1984.7,1984.6,1.66384]
[1742631655377,2.4264439,1984.8,1984.7,1.00809]
[1742631655572,0.0049939,1984.8,1984.7,1.00809]
[1742631655778,0.0049939,1984.8,1984.7,4.73861597]
[1742631656670,0.0049939,1984.8,1984.7,6.01671597]
[1742631658578,1.0130339,1984.8,1984.7,6.01671597]
[1742631658783,2.3767339,1984.8,1984.7,6.01671597]
[1742631659777,0.0049939,1984.8,1984.7,6.01671597]
[1742631660382,1.00785,1985.2,1984.8,2.52008]
[1742631660583,2.35385,1985.2,1985.1,1.00784]
[1742631660880,3.197,1985.3,1985.2,1.00779]
[1742631660881,1.0078,1985.3,1985.2,1.00779]
[1742631661389,1.00783,1985.2,1985.1,46.94437597]
[1742631661684,1.00782,1985.3,1985.2,1.00783]
[1742631662387,1.00782,1985.3,1985.1,45.54593398]
[1742631662583,4.5801,1985.5,1985.2,1.66019]
[1742631662787,1.00776,1985.4,1985.2,1.66019]
[1742631663084,1.00776,1985.4,1985.3,1.00778]
[1742631663391,1.00778,1985.3,1985.2,1.66019]
[1742631664180,1.00777,1985.4,1985.2,1.66019]
[1742631664578,1.00778,1985.3,1985.2,0.6524]
[1742631664778,1.00778,1985.3,1985.2,1.66023]
[1742631664981,1.00777,1985.4,1985.2,1.66023]
[1742631665882,5.5878,1985.5,1985.3,1.00775]
[1742631666083,3.2,1985.5,1985.4,1.00773]
[1742631666876,4.20768,1985.5,1985.3,1.00777]
[1742631667788,1.00773,1985.4,1985.2,1.66019]
[1742631667989,5.58933,1985.5,1985.2,1.66019]
[1742631668287,1.00773,1985.4,1985.2,0.6524]
[1742631668786,1.00778,1985.3,1985.2,0.6524]
[1742631675189,1.00783,1985.2,1985.1,4.42748398]
[1742631675500,1.65863,1985.2,1985.1,4.42748398]
[1742631677389,1.65863,1985.2,1985.1,5.79098398]
[1742631683302,2.31553,1985.2,1985.1,2.06045801]
[1742631684000,3.60213,1985.2,1985.1,2.06045801]
[1742631684300,2.29443,1985.2,1985.1,3.06833801]
[1742631684595,7.40855,1985.4,1985.3,1.00778]
[1742631684804,2.29439,1985.3,1985.2,2.9756]
[1742631687895,2.29439,1985.3,1985.2,1.9678]
[1742631688703,2.29439,1985.3,1985.2,2.97563]
[1742631689295,2.29439,1985.3,1985.2,6.70615597]
[1742631689701,2.29439,1985.3,1985.2,5.69832597]
[1742631690109,2.29439,1985.3,1985.2,6.70615597]
[1742631694707,1.2866,1985.3,1985.2,6.70615597]
[1742631695007,2.29438,1985.3,1985.2,6.70615597]
[1742631696609,1.2866,1985.3,1985.2,6.70615597]
[1742631696816,1.00777,1985.4,1985.3,1.00778]
[1742631697007,2.39777,1985.4,1985.3,2.37388]
[1742631698507,2.39777,1985.4,1985.3,1.3661]
[1742631699103,5.60557,1985.4,1985.3,1.3661]
[1742631699500,1.00778,1985.3,1985.2,3.73052597]
[1742631699813,3.74128,1985.3,1985.2,3.73052597]
[1742631700003,3.74128,1985.3,1985.2,5.09292597]
[1742631701112,3.74128,1985.3,1985.2,1.3624]
[1742631703913,1.00783,1985.2,1985.1,3.73808398]
[1742631704114,2.28213,1985.2,1985.1,3.73808398]
[1742631706108,8.67593,1985.2,1985.1,3.72553207]
[1742631706509,9.47955501,1985.2,1985.1,3.72553207]
[1742631706712,2.51987,1985.0,1984.5,7.94150207]
[1742631706913,1.00811,1984.7,1984.6,2.37163]
[1742631707110,1.00811,1984.7,1984.6,1.3635]
[1742631707315,1.00811,1984.7,1984.6,42.1635]
[1742631708111,1.00811,1984.7,1984.6,43.17164]
[1742631708723,1.00811,1984.7,1984.6,42.1635]
[1742631709112,1.00811,1984.7,1984.6,1.3635]
[1742631709520,1.00811,1984.7,1984.6,2.37164]
[1742631709819,1.00811,1984.7,1984.6,1.3635]
[1742631715023,1.00811,1984.7,1984.6,2.37164]
[1742631723332,2.38263801,1984.8,1984.7,1.00809]
[1742631723528,2.38263801,1984.8,1984.7,2.35519]
[1742631724326,1.37455801,1984.8,1984.7,2.35519]
[1742631724727,0.00755801,1984.8,1984.7,3.05609]
[1742631725221,0.00755801,1984.8,1984.7,6.24409]
[1742631726326,0.00755801,1984.8,1984.7,9.96962207]
[1742631726522,1.2774,1985.0,1984.9,1.00799]
[1742631726728,3.2078,1985.5,1985.1,2.51966]
[1742631727026,5.47315,1985.4,1985.3,1.00778]
[1742631727230,1.2774,1985.4,1985.3,2.40148]